Workbook

Sheet 開始
B1: 關於此範本
B2: 使用此範本來建立通路行銷預算。
B3: 在表格中輸入每月的預計銷售額和其他詳細資料。
B4: 系統將會自動計算總計並更新走勢圖。
B5: 附註：
B6: [通路行銷預算] 工作表的 A 欄提供其他指示。此文字已刻意隱藏。若要移除文字，請選取欄 A，然後選取 [刪除]。若要取消隱藏文字，請選取 A 欄，然後變更字型色彩。
B7: 若要深入了解表格，請在表格內按 SHIFT 然後按 F10，選取 [表格] 選項，然後選取 [替代文字]。

Sheet 通路行銷預算
C2: 率 | D2: 月份 1 | E2: 月份 2 | F2: 月份 3 | G2: 月份 4 | H2: 月份 5 | I2: 月份 6 | J2: 月份 7 | K2: 月份 8 | L2: 月份 9 | M2: 月份 10 | N2: 月份 11 | O2: 月份 12 | Q2: 總計
B3: 預計銷售總額 NT$(000) | D3: 750 | E3: 200 | F3: 500 | G3: 1,500 | H3: 1,200 | I3: 1,500 | J3: 1,500 | K3: 1,800 | L3: 2,000 | M3: 2,000 | N3: 2,000 | O3: 2,000 | Q3: =SUM(D3:O3) -> 16,950
A4: 在 [人事] 表格 (從右側儲存格開始) 中輸入詳細資料。表格結尾會自動計算每月的人事總計，而儲存格 Q9 則為年度總計。儲存格 S9 中的走勢圖會更新。下一個指示在儲存格 A10。 | B4: 人事項目 | C4: 率 | D4: 月份 1 | E4: 月份 2 | F4: 月份 3 | G4: 月份 4 | H4: 月份 5 | I4: 月份 6 | J4: 月份 7 | K4: 月份 8 | L4: 月份 9 | M4: 月份 10 | N4: 月份 11 | O4: 月份 12
B5: 人事 (總銷售額的百分比) | D5: =D11+D36+D44+D51 -> 110% | E5: 110% | F5: =F11+F36+F44+F51 -> 110% | G5: 110% | H5: 110% | I5: 110% | J5: 110% | K5: 110% | L5: 85% | M5: 85% | N5: 85% | O5: 85%
B6: 人力資源 - 人數 | C6: 5 | D6: =+$C$6 -> 5 | E6: 5 | F6: 5 | G6: 5 | H6: 5 | I6: 5 | J6: 5 | K6: 5 | L6: 5 | M6: 5 | N6: 5 | O6: 5
B7: 人力資源 - 成本 | D7: =$C$6*D6 -> 25.00 | E7: 25.00 | F7: 25.00 | G7: 25.00 | H7: 25.00 | I7: 25.00 | J7: 25.00 | K7: 25.00 | L7: 25.00 | M7: 25.00 | N7: 25.00 | O7: 25.00 | Q7: =SUM(通路行銷預算!$D7:$O7) -> 300.00
B8: 佣金 | C8: 0.10% | D8: =D3*$C$8 -> 0.75 | E8: 0.20 | F8: 0.50 | G8: 1.50 | H8: 1.20 | I8: 1.50 | J8: 1.50 | K8: 1.80 | L8: 2.00 | M8: 2.00 | N8: 2.00 | O8: 2.00 | Q8: =SUM(通路行銷預算!$D8:$O8) -> 16.95
B9: 人事總計NT$(000) | D9: =SUM(D7:D8) -> 25.75 | E9: =SUM(E7:E8) -> 25.20 | F9: 25.50 | G9: 26.50 | H9: 26.20 | I9: 26.50 | J9: 26.50 | K9: 26.80 | L9: 27.00 | M9: 27.00 | N9: 27.00 | O9: 27.00 | Q9: =SUM(Q7:Q8) -> 316.95
B10: 直效行銷項目 | C10: 率 | D10: 月份 1 | E10: 月份 2 | F10: 月份 3 | G10: 月份 4 | H10: 月份 5 | I10: 月份 6 | J10: 月份 7 | K10: 月份 8 | L10: 月份 9 | M10: 月份 10 | N10: 月份 11 | O10: 月份 12
B11: 直效行銷 (總銷售額的百分比) | D11: 100% | E11: 100% | F11: 75% | G11: 40% | H11: 33% | I11: 25% | J11: 20% | K11: 10% | L11: 5% | M11: 5% | N11: 5% | O11: 5%
B12: 電話行銷 (直接銷售的百分比) | D12: 100% | E12: 50% | F12: 50% | G12: 50% | H12: 50% | I12: 50% | J12: 50% | K12: 50% | L12: 50% | M12: 50% | N12: 50% | O12: 50%
B13: 人力資源 - 人數 | C13: 3 | D13: =$C$13*D12 -> 3 | E13: 1.5 | F13: 1.5 | G13: 1.5 | H13: 1.5 | I13: 1.5 | J13: 1.5 | K13: 1.5 | L13: 1.5 | M13: 1.5 | N13: 1.5 | O13: 1.5 | Q13: =SUM(通路行銷預算!$D13:$O13) -> 19.50
B14: 基礎建設支援 | D14: 25 | E14: 10 | F14: 25 | G14: 10 | H14: 25 | I14: 10 | J14: 25 | K14: 10 | L14: 25 | M14: 10 | N14: 25 | O14: 10 | Q14: =SUM(通路行銷預算!$D14:$O14) -> 210.00
B15: 佣金 | C15: 0.10% | D15: =$C$15*D3*D11*D12 -> 0.75 | E15: 0.10 | F15: 0.19 | G15: 0.30 | H15: 0.20 | I15: 0.19 | J15: 0.15 | K15: 0.09 | L15: 0.05 | M15: 0.05 | N15: 0.05 | O15: 0.05 | Q15: =SUM(通路行銷預算!$D15:$O15) -> 2.16
B16: 訓練 | D16: 25 | E16: 10 | F16: 25 | G16: 10 | H16: 25 | I16: 10 | J16: 25 | K16: 10 | L16: 25 | M16: 10 | N16: 25 | O16: 10 | Q16: =SUM(通路行銷預算!$D16:$O16) -> 210.00
B17: 電話行銷總計 NT$(000) | D17: =SUM(D13:D16) -> 53.75 | E17: =SUM(E13:E16) -> 21.60 | F17: =SUM(F13:F16) -> 51.69 | G17: 21.80 | H17: 51.70 | I17: 21.69 | J17: 51.65 | K17: 21.59 | L17: 51.55 | M17: 21.55 | N17: 51.55 | O17: 21.55 | Q17: =SUM(Q13:Q16) -> 441.66
B18: 網際網路行銷項目 | C18: 率 | D18: 月份 1 | E18: 月份 2 | F18: 月份 3 | G18: 月份 4 | H18: 月份 5 | I18: 月份 6 | J18: 月份 7 | K18: 月份 8 | L18: 月份 9 | M18: 月份 10 | N18: 月份 11 | O18: 月份 12
B19: 網際網路行銷 (直接銷售的百分比) | D19: 25% | E19: 25% | F19: 25% | G19: 25% | H19: 25% | I19: 25% | J19: 25% | K19: 25% | L19: 25% | M19: 25% | N19: 25% | O19: 25%
B20: 人力資源 - 人數 | C20: 1 | D20: =$C$20*D19 -> 0.25 | E20: 0.25 | F20: 0.25 | G20: 0.25 | H20: 0.25 | I20: 0.25 | J20: 0.25 | K20: 0.25 | L20: 0.25 | M20: 0.25 | N20: 0.25 | O20: 0.25 | Q20: =SUM(通路行銷預算!$D20:$O20) -> 3.00
B21: 網站開發 (一次性成本) | D21: 500 | Q21: =SUM(通路行銷預算!$D21:$O21) -> 500.00
B22: 網站託管 | D22: 10 | E22: 10 | F22: 10 | G22: 10 | H22: 10 | I22: 10 | J22: 10 | K22: 10 | L22: 10 | M22: 10 | N22: 10 | O22: 10 | Q22: =SUM(通路行銷預算!$D22:$O22) -> 120.00
B23: 支援與維護 | D23: 25 | N23: 25 | Q23: =SUM(通路行銷預算!$D23:$O23) -> 50.00
B24: Facebook | E24: 100 | G24: 100 | I24: 100 | K24: 100 | M24: 100 | O24: 100 | Q24: =SUM(通路行銷預算!$D24:$O24) -> 600.00
B25: Twitter | D25: 100 | F25: 100 | H25: 100 | J25: 100 | L25: 100 | N25: 100 | Q25: =SUM(通路行銷預算!$D25:$O25) -> 600.00
B26: YouTube | E26: 100 | G26: 100 | H26: 100 | L26: 100 | M26: 100 | O26: 100 | Q26: =SUM(通路行銷預算!$D26:$O26) -> 600.00
B27: 網際網路行銷總計 NT$(000) | D27: =SUM(D20:D23) -> 535.25 | E27: 10.25 | F27: 10.25 | G27: 10.25 | H27: 10.25 | I27: 10.25 | J27: 10.25 | K27: 10.25 | L27: 10.25 | M27: 10.25 | N27: 35.25 | O27: 10.25 | Q27: =SUM(Q20:Q23) -> 673.00
B28: 直效行銷郵件項目 | C28: 率 | D28: 月份 1 | E28: 月份 2 | F28: 月份 3 | G28: 月份 4 | H28: 月份 5 | I28: 月份 6 | J28: 月份 7 | K28: 月份 8 | L28: 月份 9 | M28: 月份 10 | N28: 月份 11 | O28: 月份 12
B29: 直效行銷郵件 (直接銷售的百分比)
B30: 人力資源 - 成本 | Q30: =SUM(通路行銷預算!$D30:$O30) -> 0.00
B31: 材料 | D31: 1000 | E31: 1000 | F31: 1000 | G31: 1000 | H31: 1000 | I31: 1000 | J31: 1000 | K31: 1000 | L31: 1000 | M31: 1000 | N31: 1000 | O31: 1000 | Q31: =SUM(通路行銷預算!$D31:$O31) -> 12,000.00
B32: 郵資 | D32: 250 | E32: 250 | F32: 250 | G32: 250 | H32: 250 | I32: 250 | J32: 250 | K32: 250 | L32: 250 | M32: 250 | N32: 250 | O32: 250 | Q32: =SUM(通路行銷預算!$D32:$O32) -> 3,000.00
B33: 直效行銷郵件總計 NT$(000) | D33: =SUM(D30:D32) -> 1,250.00 | E33: =SUM(E30:E32) -> 1,250.00 | F33: 1,250.00 | G33: 1,250.00 | H33: 1,250.00 | I33: 1,250.00 | J33: 1,250.00 | K33: 1,250.00 | L33: 1,250.00 | M33: 1,250.00 | N33: 1,250.00 | O33: 1,250.00 | Q33: =SUM(Q30:Q32) -> 15,000.00
B34: 直效行銷總計 NT$(000) | D34: =SUM(直效行銷郵件[[#Totals],[月份 1]],網路行銷[[#Totals],[月份 1]],直效行銷[[#Totals],[月份 1]]) -> 1,839.00 | E34: =SUM(直效行銷郵件[[#Totals],[月份 2]],網路行銷[[#Totals],[月份 2]],直效行銷[[#Totals],[月份 2]]) -> 1,281.85 | F34: =SUM(直效行銷郵件[[#Totals],[月份 3]],網路行銷[[#Totals],[月份 3]],直效行銷[[#Totals],[月份 3]]) -> 1,311.94 | G34: =SUM(直效行銷郵件[[#Totals],[月份 4]],網路行銷[[#Totals],[月份 4]],直效行銷[[#Totals],[月份 4]]) -> 1,282.05 | H34: =SUM(直效行銷郵件[[#Totals],[月份 5]],網路行銷[[#Totals],[月份 5]],直效行銷[[#Totals],[月份 5]]) -> 1,311.95 | I34: =SUM(直效行銷郵件[[#Totals],[月份 6]],網路行銷[[#Totals],[月份 6]],直效行銷[[#Totals],[月份 6]]) -> 1,281.94 | J34: =SUM(直效行銷郵件[[#Totals],[月份 7]],網路行銷[[#Totals],[月份 7]],直效行銷[[#Totals],[月份 7]]) -> 1,311.90 | K34: =SUM(直效行銷郵件[[#Totals],[月份 8]],網路行銷[[#Totals],[月份 8]],直效行銷[[#Totals],[月份 8]]) -> 1,281.84 | L34: =SUM(直效行銷郵件[[#Totals],[月份 9]],網路行銷[[#Totals],[月份 9]],直效行銷[[#Totals],[月份 9]]) -> 1,311.80 | M34: =SUM(直效行銷郵件[[#Totals],[月份 10]],網路行銷[[#Totals],[月份 10]],直效行銷[[#Totals],[月份 10]]) -> 1,281.80 | N34: =SUM(直效行銷郵件[[#Totals],[月份 11]],網路行銷[[#Totals],[月份 11]],直效行銷[[#Totals],[月份 11]]) -> 1,336.80 | O34: =SUM(直效行銷郵件[[#Totals],[月份 12]],網路行銷[[#Totals],[月份 12]],直效行銷[[#Totals],[月份 12]]) -> 1,281.80 | Q34: =SUM(Q33,Q27,Q17,Q9) -> 16,431.61
B35: 代理商/經紀商項目 | C35: 率 | D35: 月份 1 | E35: 月份 2 | F35: 月份 3 | G35: 月份 4 | H35: 月份 5 | I35: 月份 6 | J35: 月份 7 | K35: 月份 8 | L35: 月份 9 | M35: 月份 10 | N35: 月份 11 | O35: 月份 12
B36: 代理商/經紀商 (總銷售額的百分比) | D36: 10% | E36: 10% | F36: 10% | G36: 10% | H36: 10% | I36: 10% | J36: 10% | K36: 10% | L36: 10% | M36: 10% | N36: 10% | O36: 10%
B37: 通訊 | D37: 50 | E37: 50 | F37: 50 | G37: 50 | H37: 50 | I37: 50 | J37: 50 | K37: 50 | L37: 50 | M37: 50 | N37: 50 | O37: 50 | Q37: =SUM(通路行銷預算!$D37:$O37) -> 600.00
B38: 訓練 | D38: 250.00 | E38: 250.00 | F38: 250.00 | G38: 250.00 | H38: 250.00 | I38: 250.00 | J38: 250.00 | K38: 250.00 | L38: 250.00 | M38: 250.00 | N38: 250.00 | O38: 250.00 | Q38: =SUM(通路行銷預算!$D38:$O38) -> 3,000.00
B39: 促銷 | D39: 600.00 | E39: 600.00 | F39: 600.00 | G39: 600.00 | H39: 600.00 | I39: 600.00 | J39: 600.00 | K39: 600.00 | L39: 600.00 | M39: 600.00 | N39: 600.00 | O39: 600.00 | Q39: =SUM(通路行銷預算!$D39:$O39) -> 7,200.00
B40: 折扣 | C40: 10.00% | D40: =D3*D36*$C$40 -> 7.50 | E40: 2.00 | F40: 5.00 | G40: 15.00 | H40: 12.00 | I40: 15.00 | J40: 15.00 | K40: 18.00 | L40: 20.00 | M40: 20.00 | N40: 20.00 | O40: 20.00 | Q40: =SUM(通路行銷預算!$D40:$O40) -> 169.50
B41: 佣金 (代理商銷售額的百分比) | C41: 10.00% | D41: =D3*D36*$C$41 -> 7.50 | E41: 2.00 | F41: 5.00 | G41: 15.00 | H41: 12.00 | I41: 15.00 | J41: 15.00 | K41: 18.00 | L41: 20.00 | M41: 20.00 | N41: 20.00 | O41: 20.00 | Q41: =SUM(通路行銷預算!$D41:$O41) -> 169.50
B42: 代理商/經紀商總計 NT$(000) | D42: =SUM(D37:D41) -> 915.00 | E42: =SUM(E37:E41) -> 904.00 | F42: 910.00 | G42: 930.00 | H42: 924.00 | I42: 930.00 | J42: 930.00 | K42: 936.00 | L42: 940.00 | M42: 940.00 | N42: 940.00 | O42: 940.00 | Q42: =SUM(Q37:Q41) -> 11,139.00
B43: 經銷商項目 | C43: 率 | D43: 月份 1 | E43: 月份 2 | F43: 月份 3 | G43: 月份 4 | H43: 月份 5 | I43: 月份 6 | J43: 月份 7 | K43: 月份 8 | L43: 月份 9 | M43: 月份 10 | N43: 月份 11 | O43: 月份 12
B44: 經銷商 (總銷售額的百分比) | D44: 0% | E44: 0% | F44: 0% | G44: 0% | H44: 0% | I44: 15% | J44: 20% | K44: 40% | L44: 40% | M44: 40% | N44: 40% | O44: 40%
B45: 通訊 | D45: 50 | E45: 50 | F45: 50 | G45: 50 | H45: 50 | I45: 50 | J45: 50 | K45: 50 | L45: 50 | M45: 50 | N45: 50 | O45: 50 | Q45: =SUM(通路行銷預算!$D45:$O45) -> 600.00
B46: 訓練 | D46: 250.00 | E46: 250.00 | F46: 250.00 | G46: 250.00 | H46: 250.00 | I46: 250.00 | J46: 250.00 | K46: 250.00 | L46: 250.00 | M46: 250.00 | N46: 250.00 | O46: 250.00 | Q46: =SUM(經銷商[[#This Row],[月份 1]:[月份 12]]) -> 3,000.00
B47: 促銷 | D47: 600.00 | E47: 600.00 | F47: 600.00 | G47: 600.00 | H47: 600.00 | I47: 600.00 | J47: 600.00 | K47: 600.00 | L47: 600.00 | M47: 600.00 | N47: 600.00 | O47: 600.00 | Q47: =SUM(經銷商[[#This Row],[月份 1]:[月份 12]]) -> 7,200.00
B48: 佣金/折扣 (經銷商銷售額的百分比) | C48: 15.00% | D48: =D3*D44*$C$48 -> 0 | E48: 0 | F48: 0 | G48: 0 | H48: 0 | I48: 33.75 | J48: 45 | K48: 108 | L48: 120 | M48: 120 | N48: 120 | O48: 120 | Q48: =SUM(經銷商[[#This Row],[月份 1]:[月份 12]]) -> 666.75
B49: 經銷商總計 NT$(000) | D49: =SUM(D45:D48) -> 900.00 | E49: =SUM(E45:E48) -> 900.00 | F49: 900.00 | G49: 900.00 | H49: 900.00 | I49: 933.75 | J49: 945.00 | K49: 1,008.00 | L49: 1,020.00 | M49: 1,020.00 | N49: 1,020.00 | O49: 1,020.00 | Q49: =SUM(Q45:Q48) -> 11,466.75
B50: 零售項目 | C50: 率 | D50: 月份 1 | E50: 月份 2 | F50: 月份 3 | G50: 月份 4 | H50: 月份 5 | I50: 月份 6 | J50: 月份 7 | K50: 月份 8 | L50: 月份 9 | M50: 月份 10 | N50: 月份 11 | O50: 月份 12
B51: 零售商 (總銷售額的百分比) | D51: 0% | E51: 0% | F51: 25% | G51: 60% | H51: 67% | I51: 60% | J51: 60% | K51: 50% | L51: 30% | M51: 30% | N51: 30% | O51: 30%
B52: 通訊 | D52: 50 | E52: 50 | F52: 50 | G52: 50 | H52: 50 | I52: 50 | J52: 50 | K52: 50 | L52: 50 | M52: 50 | N52: 50 | O52: 50
B53: 訓練 | D53: 250.00 | E53: 250.00 | F53: 250.00 | G53: 250.00 | H53: 250.00 | I53: 250.00 | J53: 250.00 | K53: 250.00 | L53: 250.00 | M53: 250.00 | N53: 250.00 | O53: 250.00 | Q53: =SUM(通路行銷預算!$D52:$O52) -> 600.00
B54: 促銷 | D54: 600.00 | E54: 600.00 | F54: 600.00 | G54: 600.00 | H54: 600.00 | I54: 600.00 | J54: 600.00 | K54: 600.00 | L54: 600.00 | M54: 600.00 | N54: 600.00 | O54: 600.00 | Q54: =SUM(通路行銷預算!$D53:$O53) -> 3,000.00
B55: 佣金/折扣 (零售額的百分比) | C55: 10.00% | D55: =D3*D51*$C$55 -> 0 | E55: 0 | F55: 12.5 | G55: 90 | H55: 80.4 | I55: 90 | J55: 90 | K55: 90 | L55: 60 | M55: 60 | N55: 60 | O55: 60 | Q55: =SUM(通路行銷預算!$D55:$O55) -> 692.90
B56: 零售商總計 NT$(000) | D56: =SUM(D52:D55) -> 900.00 | E56: =SUM(E52:E55) -> 900.00 | F56: 912.50 | G56: 990.00 | H56: 980.40 | I56: 990.00 | J56: 990.00 | K56: 990.00 | L56: 960.00 | M56: 960.00 | N56: 960.00 | O56: 960.00 | Q56: =SUM(Q53:Q55) -> 4,292.90
B57: 客戶獲取與忠誠度 (CAR) 項目 | C57: 率 | D57: 月份 1 | E57: 月份 2 | F57: 月份 3 | G57: 月份 4 | H57: 月份 5 | I57: 月份 6 | J57: 月份 7 | K57: 月份 8 | L57: 月份 9 | M57: 月份 10 | N57: 月份 11 | O57: 月份 12
B58: 客戶獲取與忠誠度 (CAR)
B59: 人力資源 | D59: 50 | E59: 50 | F59: 50 | G59: 50 | H59: 50 | I59: 50 | J59: 50 | K59: 50 | L59: 50 | M59: 50 | N59: 50 | O59: 50 | Q59: =SUM(通路行銷預算!$D59:$O59) -> 600.00
B60: 通訊 | D60: 250.00 | E60: 250.00 | F60: 250.00 | G60: 250.00 | H60: 250.00 | I60: 250.00 | J60: 250.00 | K60: 250.00 | L60: 250.00 | M60: 250.00 | N60: 250.00 | O60: 250.00 | Q60: =SUM(通路行銷預算!$D60:$O60) -> 3,000.00
B61: 促銷/折價券 | D61: 600 | E61: 600 | F61: 600 | G61: 600 | H61: 600 | I61: 600 | J61: 600 | K61: 600 | L61: 600 | M61: 600 | N61: 600 | O61: 600 | Q61: =SUM(通路行銷預算!$D61:$O61) -> 7,200.00
B62: CAR 總計 NT$(000) | D62: =SUM(D59:D61) -> 900.00 | E62: =SUM(E59:E61) -> 900.00 | F62: 900.00 | G62: 900.00 | H62: 900.00 | I62: 900.00 | J62: 900.00 | K62: 900.00 | L62: 900.00 | M62: 900.00 | N62: 900.00 | O62: 900.00 | Q62: =SUM(Q59:Q61) -> 10,800.00
B63: 其他支出項目 | C63: 率 | D63: 月份 1 | E63: 月份 2 | F63: 月份 3 | G63: 月份 4 | H63: 月份 5 | I63: 月份 6 | J63: 月份 7 | K63: 月份 8 | L63: 月份 9 | M63: 月份 10 | N63: 月份 11 | O63: 月份 12
B64: 其他費用
B65: 差旅 | D65: 50 | E65: 50 | F65: 50 | G65: 50 | H65: 50 | I65: 50 | J65: 50 | K65: 50 | L65: 50 | M65: 50 | N65: 50 | O65: 50 | Q65: =SUM(通路行銷預算!$D65:$O65) -> 600.00
B66: 基礎建設 (電腦、電話等等) | D66: 250.00 | E66: 250.00 | F66: 250.00 | G66: 250.00 | H66: 250.00 | I66: 250.00 | J66: 250.00 | K66: 250.00 | L66: 250.00 | M66: 250.00 | N66: 250.00 | O66: 250.00 | Q66: =SUM(通路行銷預算!$D66:$O66) -> 3,000.00
B67: 通路支援 | D67: 600 | E67: 600 | F67: 600 | G67: 600 | H67: 600 | I67: 600 | J67: 600 | K67: 600 | L67: 600 | M67: 600 | N67: 600 | O67: 600 | Q67: =SUM(通路行銷預算!$D67:$O67) -> 7,200.00
B68: 其他支出總計 NT$(000) | D68: =SUM(D65:D67) -> 900.00 | E68: =SUM(E65:E67) -> 900.00 | F68: 900.00 | G68: 900.00 | H68: 900.00 | I68: 900.00 | J68: 900.00 | K68: 900.00 | L68: 900.00 | M68: 900.00 | N68: 900.00 | O68: 900.00 | Q68: =SUM(Q65:Q67) -> 10,800.00
B70: 總行銷預算： | D70: =SUM(D34,代理商與經紀商[[#Totals],[月份 1]],經銷商[[#Totals],[月份 1]],零售商[[#Totals],[月份 1]],汽車[[#Totals],[月份 1]],其他支出[[#Totals],[月份 1]]) -> 6,354.00 | E70: =SUM(其他支出[[#Totals],[月份 2]],汽車[[#Totals],[月份 2]],零售商[[#Totals],[月份 2]],經銷商[[#Totals],[月份 2]],代理商與經紀商[[#Totals],[月份 2]],E34) -> 5,785.85 | F70: =SUM(其他支出[[#Totals],[月份 3]],汽車[[#Totals],[月份 3]],零售商[[#Totals],[月份 3]],經銷商[[#Totals],[月份 3]],代理商與經紀商[[#Totals],[月份 3]],F34) -> 5,834.44 | G70: =SUM(其他支出[[#Totals],[月份 4]],汽車[[#Totals],[月份 4]],零售商[[#Totals],[月份 4]],經銷商[[#Totals],[月份 4]],代理商與經紀商[[#Totals],[月份 4]],G34) -> 5,902.05 | H70: =SUM(其他支出[[#Totals],[月份 5]],汽車[[#Totals],[月份 5]],零售商[[#Totals],[月份 5]],經銷商[[#Totals],[月份 5]],代理商與經紀商[[#Totals],[月份 5]],H34) -> 5,916.35 | I70: =SUM(其他支出[[#Totals],[月份 6]],汽車[[#Totals],[月份 6]],零售商[[#Totals],[月份 6]],經銷商[[#Totals],[月份 6]],代理商與經紀商[[#Totals],[月份 6]],I34) -> 5,935.69 | J70: =SUM(其他支出[[#Totals],[月份 7]],汽車[[#Totals],[月份 7]],零售商[[#Totals],[月份 7]],經銷商[[#Totals],[月份 7]],代理商與經紀商[[#Totals],[月份 7]],J34) -> 5,976.90 | K70: =SUM(其他支出[[#Totals],[月份 8]],汽車[[#Totals],[月份 8]],零售商[[#Totals],[月份 8]],經銷商[[#Totals],[月份 8]],代理商與經紀商[[#Totals],[月份 8]],K34) -> 6,015.84 | L70: =SUM(其他支出[[#Totals],[月份 9]],汽車[[#Totals],[月份 9]],零售商[[#Totals],[月份 9]],經銷商[[#Totals],[月份 9]],代理商與經紀商[[#Totals],[月份 9]],L34) -> 6,031.80 | M70: =SUM(其他支出[[#Totals],[月份 10]],汽車[[#Totals],[月份 10]],零售商[[#Totals],[月份 10]],經銷商[[#Totals],[月份 10]],代理商與經紀商[[#Totals],[月份 10]],M34) -> 6,001.80 | N70: =SUM(其他支出[[#Totals],[月份 11]],汽車[[#Totals],[月份 11]],零售商[[#Totals],[月份 11]],經銷商[[#Totals],[月份 11]],代理商與經紀商[[#Totals],[月份 11]],N34) -> 6,056.80 | O70: =SUM(其他支出[[#Totals],[月份 12]],汽車[[#Totals],[月份 12]],零售商[[#Totals],[月份 12]],經銷商[[#Totals],[月份 12]],代理商與經紀商[[#Totals],[月份 12]],O34) -> 6,001.80 | Q70: =Q72 -> 0.00
